fUSD/lending_fUSD_20250211
["ID","MTS","AMOUNT","RATE_DAILY","PERIOD"]
[352711348,1739268641071,-500.0,0.00010958,2]
[352711349,1739268641080,-500.0,0.00010958,2]
[352711350,1739268641089,-1209.95,0.00010958,2]
[352711351,1739268641098,-501.27669962,0.00010958,2]
[352711352,1739268641107,-500.0,0.00010958,2]
[352711353,1739268641117,-500.0,0.00010958,2]
[352711354,1739268641126,-500.0,0.00010958,2]
[352711355,1739268641137,-500.0,0.00010958,2]
[352711356,1739268641145,-500.0,0.00010958,2]
[352711357,1739268641155,-500.0,0.00010958,2]
[352711358,1739268641164,-500.0,0.00010958,2]
[352711359,1739268641173,-500.0,0.00010958,2]
[352711360,1739268641182,-500.0,0.00010958,2]
[352711361,1739268641191,-500.0,0.00010958,2]
[352711362,1739268641200,-598.88,0.00010958,2]
[352711363,1739268641210,-509.9648163,0.00010958,2]
[352711364,1739268641219,-500.0,0.00010958,2]
[352711365,1739268641228,-500.0,0.00010958,2]
[352711366,1739268641238,-852.68,0.00010958,2]
[352711367,1739268641248,-500.0,0.00010958,2]
[352711368,1739268641257,-500.0,0.00010958,2]
[352711369,1739268641267,-965.77,0.00010958,2]
[352711370,1739268641276,-500.0,0.00010958,2]
[352711371,1739268641286,-500.0,0.00010958,2]
[352711372,1739268641295,-500.0,0.00010958,2]
[352711373,1739268641305,-500.0,0.00010958,2]
[352711374,1739268641314,-500.0,0.00010958,2]
[352711375,1739268641323,-507.21034192,0.00010958,2]
[352711376,1739268641333,-500.0,0.00010958,2]
[352711377,1739268641343,-500.0,0.00010958,2]
[352711378,1739268641352,-500.60205702,0.00010958,2]
[352711379,1739268641361,-1341.75,0.00010958,2]
[352711380,1739268641371,-1367.3,0.00010958,2]
[352711381,1739268641380,-500.0,0.00010958,2]
[352711382,1739268641390,-500.0,0.00010958,2]
[352711383,1739268641399,-500.0,0.00010958,2]
[352711384,1739268641408,-1255.93,0.00010958,2]
[352711385,1739268641417,-500.0,0.00010958,2]
[352711386,1739268641427,-500.0,0.00010958,2]
[352711387,1739268641435,-500.0,0.00010958,2]
[352711388,1739268641445,-503.11615314,0.00010958,2]
[352711389,1739268641454,-500.0,0.00010958,2]
[352711390,1739268641463,-504.08259438,0.00010958,2]
[352711391,1739268641472,-444.84804732,0.00010958,2]
[352711392,1739268641481,-500.0,0.00010958,2]
[352711393,1739268641491,-500.0,0.00010958,2]
[352711394,1739268641501,-243.90381176,0.00010958,2]
[352711395,1739268641510,-500.0,0.00010958,2]
[352711396,1739268641519,-910.62,0.00010958,2]
[352711397,1739268641529,-500.0,0.00010958,2]
[352711398,1739268641538,-500.0,0.00010958,2]
[352711399,1739268641548,-500.0,0.00010958,2]
[352711400,1739268641557,-500.0,0.00010958,2]
[352711401,1739268641566,-611.98,0.00010958,2]
[352711402,1739268641575,-500.0,0.00010958,2]
[352711403,1739268641585,-500.0,0.00010958,2]
[352711404,1739268641594,-500.0,0.00010958,2]
[352711405,1739268641604,-1281.4,0.00010958,2]
[352711406,1739268641613,-500.0,0.00010958,2]
[352711407,1739268641622,-500.0,0.00010958,2]
[352711408,1739268641632,-500.0,0.00010958,2]
[352711409,1739268641641,-500.0,0.00010958,2]
[352711410,1739268641651,-286.2893801,0.00010958,2]
[352711411,1739268641660,-500.0,0.00010958,2]
[352711412,1739268641670,-1225.98,0.00010958,2]
[352711413,1739268641679,-620.22,0.00010958,2]
[352711414,1739268641688,-500.0,0.00010958,2]
[352711415,1739268641698,-500.0,0.00010958,2]
[352711416,1739268641707,-500.0,0.00010958,2]
[352711417,1739268641716,-500.0,0.00010958,2]
[352711418,1739268641725,-2755.0,0.00010958,2]
[352711419,1739268641734,-500.0,0.00010958,2]
[352711420,1739268641743,-822.11,0.00010958,2]
[352711421,1739268641753,-500.0,0.00010958,2]
[352711422,1739268641762,-500.0,0.00010958,2]
[352711423,1739268641771,-500.0,0.00010958,2]
[352711424,1739268641780,-500.0,0.00010958,2]
[352711425,1739268641791,-500.0,0.00010958,2]
[352711426,1739268641803,-500.0,0.00010958,2]
[352711427,1739268641812,-500.0,0.00010958,2]
[352711428,1739268641822,-3889.77989785,0.00010958,2]
[352711429,1739268641831,-500.0,0.00010958,2]
[352711430,1739268641841,-500.0,0.00010958,2]
[352711431,1739268641850,-500.0,0.00010958,2]
[352711432,1739268641859,-500.0,0.00010958,2]
[352711433,1739268641869,-500.0,0.00010958,2]
[352711434,1739268641879,-500.0,0.00010958,2]
[352711435,1739268641889,-500.0,0.00010958,2]
[352711436,1739268641900,-500.0,0.00010958,2]
[352711437,1739268641909,-500.0,0.00010958,2]
[352711438,1739268641919,-500.0,0.00010958,2]
[352711439,1739268641928,-500.0,0.00010958,2]
[352711440,1739268641938,-500.0,0.00010958,2]
[352711441,1739268641947,-2237.77,0.00010958,2]
[352711442,1739268641956,-500.0,0.00010958,2]
[352711443,1739268641966,-500.0,0.00010958,2]
[352711444,1739268641975,-500.0,0.00010958,2]
[352711445,1739268641984,-1622.92,0.00010958,2]
[352711446,1739268641994,-500.0,0.00010958,2]
[352711447,1739268642004,-500.0,0.00010958,2]
[352711448,1739268642014,-500.0,0.00010958,2]
[352711449,1739268642023,-1212.52,0.00010958,2]
[352711450,1739268642033,-500.0,0.00010958,2]
[352711451,1739268642043,-2261.8,0.00010958,2]
[352711452,1739268642052,-557.94547604,0.00010958,2]
[352711453,1739268642061,-500.0,0.00010958,2]
[352711454,1739268642070,-500.0,0.00010958,2]
[352711455,1739268642079,-500.0,0.00010958,2]
[352711456,1739268642089,-2084.3,0.00010958,2]
[352711457,1739268642099,-683.96,0.00010958,2]
[352711458,1739268642108,-3108.62,0.00010958,2]
[352711459,1739268642118,-2405.6,0.00010958,2]
[352711460,1739268642128,-500.0,0.00010958,2]
[352711461,1739268642139,-500.0,0.00010958,2]
[352711462,1739268642148,-500.0,0.00010958,2]
[352711463,1739268642158,-2418.4,0.00010958,2]
[352711464,1739268642167,-500.0,0.00010958,2]
[352711465,1739268642177,-500.0,0.00010958,2]
[352711466,1739268642187,-500.0,0.00010958,2]
[352711467,1739268642196,-500.0,0.00010958,2]
[352711468,1739268642206,-506.40552909,0.00010958,2]
[352711469,1739268642215,-558.9,0.00010958,2]
[352711470,1739268642225,-503.32659104,0.00010958,2]
[352711471,1739268642234,-500.0,0.00010958,2]
[352711472,1739268642243,-500.0,0.00010958,2]
[352711473,1739268642253,-500.0,0.00010958,2]
[352711475,1739268642262,-841.84,0.00010958,2]
[352711477,1739268642271,-176.91427076,0.00010958,2]
[352711479,1739268642287,-323.08572924,0.00010958,2]
[352711481,1739268642296,-205.65602284,0.00010958,2]
[352711484,1739268642307,-294.34397716,0.00010958,2]
[352711485,1739268642316,-500.0,0.00010958,2]
[352711487,1739268642324,-500.0,0.00010958,2]
[352711489,1739268642333,-448.95962284,0.00010958,2]
[352711502,1739268642434,-848.06037716,0.00010958,2]
[352711503,1739268642444,-500.0,0.00010958,2]
[352711504,1739268642452,-500.0,0.00010958,2]
[352711505,1739268642461,-591.26,0.00010958,2]
[352711506,1739268642470,-500.0,0.00010958,2]
[352711507,1739268642479,-527.46,0.00010958,2]
[352711508,1739268642488,-1296.47,0.00010958,2]
[352711509,1739268642497,-1521.46,0.00010958,2]
[352711510,1739268642507,-374.44527543,0.00010958,2]
[352711511,1739268642516,-500.0,0.00010958,2]
[352711512,1739268642525,-2033.5,0.00010958,2]
[352711513,1739268642535,-508.30847478,0.00010958,2]
[352711514,1739268642544,-500.0,0.00010958,2]
[352711515,1739268642553,-561.75166952,0.00010958,2]
[352711516,1739268642562,-970.37,0.00010958,2]
[352711517,1739268642572,-605.17644205,0.00010958,2]
[352711518,1739268642581,-720.35,0.00010958,2]
[352711519,1739268642592,-1520.7,0.00010958,2]
[352711520,1739268642601,-500.0,0.00010958,2]
[352711521,1739268642611,-2076.1,0.00010958,2]
[352711522,1739268642620,-155.059478,0.00010958,2]
[352711523,1739268642629,-500.0,0.00010958,2]
[352711524,1739268642640,-1025.92,0.00010958,2]
[352711525,1739268642650,-2406.22,0.00010958,2]
[352711526,1739268642659,-500.0,0.00010958,2]
[352711527,1739268642668,-609.32,0.00010958,2]
[352711528,1739268642678,-553.69,0.00010958,2]
[352711529,1739268642687,-2661.7,0.00010958,2]
[352711530,1739268642696,-500.0,0.00010958,2]
[352711531,1739268642706,-505.45188928,0.00010958,2]
[352711532,1739268642715,-625.24,0.00010958,2]
[352711533,1739268642724,-500.0,0.00010958,2]
[352711534,1739268642733,-975.36,0.00010958,2]
[352711535,1739268642743,-500.0,0.00010958,2]
[352711536,1739268642752,-195.090942,0.00010958,2]
[352711537,1739268642761,-1000.0,0.00010958,2]
[352711538,1739268642770,-1959.92,0.00010958,2]
[352711539,1739268642779,-2181.14,0.00010958,2]
[352711540,1739268642789,-500.0,0.00010958,2]
[352711541,1739268642802,-500.0,0.00010958,2]
[352711543,1739268642812,-588.12,0.00010958,2]
[352711544,1739268642821,-588.12,0.00010958,2]
[352711546,1739268642830,-500.0,0.00010958,2]
[352711549,1739268642840,-1756.1,0.00010958,2]
[352711550,1739268642850,-500.74800362,0.00010958,2]
[352711551,1739268642859,-500.0,0.00010958,2]
[352711552,1739268642867,-500.0,0.00010958,2]
[352711554,1739268642879,-2053.04,0.00010958,2]
[352711555,1739268642889,-1562.09,0.00010958,2]
[352711556,1739268642898,-500.50081125,0.00010958,2]
[352711557,1739268642907,-1285.11,0.00010958,2]
[352711558,1739268642917,-500.0,0.00010958,2]
[352711561,1739268642927,-500.0,0.00010958,2]
[352711563,1739268642936,-541.66,0.00010958,2]
[352711564,1739268642944,-500.0,0.00010958,2]
[352711565,1739268642954,-500.0,0.00010958,2]
[352711566,1739268642963,-1172.85,0.00010958,2]
[352711567,1739268642973,-1621.83,0.00010958,2]
[352711568,1739268642982,-2786.23,0.00010958,2]
[352711570,1739268642991,-2345.08,0.00010958,2]
[352711572,1739268643001,-852.48,0.00010958,2]
[352711574,1739268643010,-2629.9,0.00010958,2]
[352711576,1739268643019,-1357.6,0.00010958,2]
[352711578,1739268643028,-500.0,0.00010958,2]
[352711580,1739268643037,-1293.27,0.00010958,2]
[352711581,1739268643046,-500.0,0.00010958,2]
[352711582,1739268643055,-595.55,0.00010958,2]
[352711583,1739268643065,-500.0,0.00010958,2]
[352711584,1739268643074,-500.0,0.00010958,2]
[352711585,1739268643084,-2481.01,0.00010958,2]
[352711586,1739268643093,-587.68,0.00010958,2]
[352711587,1739268643102,-163.61272562,0.00010958,2]
[352711588,1739268643113,-2068.81,0.00010958,2]
[352711589,1739268643122,-2675.7,0.00010958,2]
[352711590,1739268643132,-4489.13,0.00010958,2]
[352711591,1739268643142,-2171.17,0.00010958,2]
[352711592,1739268643152,-539.3,0.00010958,2]
[352711593,1739268643161,-500.0,0.00010958,2]
[352711594,1739268643170,-1788.38,0.00010958,2]
[352711595,1739268643180,-500.0,0.00010958,2]
[352711596,1739268643189,-500.0,0.00010958,2]
[352711597,1739268643199,-501.07471443,0.00010958,2]
[352711598,1739268643208,-500.0,0.00010958,2]
[352711599,1739268643218,-500.0,0.00010958,2]
[352711600,1739268643227,-1454.02,0.00010958,2]
[352711601,1739268643237,-500.0,0.00010958,2]
[352711602,1739268643246,-500.0,0.00010958,2]
[352711603,1739268643256,-500.0,0.00010958,2]
[352711604,1739268643265,-500.0,0.00010958,2]
[352711605,1739268643274,-500.0,0.00010958,2]
[352711606,1739268643283,-500.0,0.00010958,2]
[352711607,1739268643292,-500.0,0.00010958,2]
[352711608,1739268643302,-503.85410276,0.00010958,2]
[352711609,1739268643311,-500.0,0.00010958,2]
[352711610,1739268643320,-559.33,0.00010958,2]
[352711611,1739268643329,-500.0,0.00010958,2]
[352711612,1739268643338,-2366.24,0.00010958,2]
[352711613,1739268643348,-2452.54,0.00010958,2]
[352711614,1739268643357,-913.91,0.00010958,2]
[352711615,1739268643543,-2181.59,0.00010958,2]
[352711616,1739268643553,-500.0,0.00010958,2]
[352711617,1739268643563,-500.0,0.00010958,2]
[352711618,1739268643572,-500.0,0.00010958,2]
[352711619,1739268643582,-612.57466594,0.00010958,2]
[352711620,1739268643591,-1941.06,0.00010958,2]
[352711621,1739268643600,-2439.25,0.00010958,2]
[352711622,1739268643609,-538.54,0.00010958,2]
[352711623,1739268643619,-500.0,0.00010958,2]
[352711624,1739268643627,-502.57701861,0.00010958,2]
[352711625,1739268643638,-2213.88,0.00010958,2]
[352711626,1739268643648,-927.5,0.00010958,2]
[352711627,1739268643657,-500.0,0.00010958,2]
[352711628,1739268643666,-500.0,0.00010958,2]
[352711629,1739268643675,-1947.44,0.00010958,2]
[352711630,1739268643685,-500.0,0.00010958,2]
[352711631,1739268643694,-1764.52,0.00010958,2]
[352711632,1739268643703,-500.0,0.00010958,2]
[352711633,1739268643712,-2759.21,0.00010958,2]
[352711634,1739268643721,-2035.52,0.00010958,2]
[352711635,1739268643731,-2137.98,0.00010958,2]
[352711636,1739268643741,-500.0,0.00010958,2]
[352711637,1739268643750,-500.0,0.00010958,2]
[352711638,1739268643760,-500.0,0.00010958,2]
[352711639,1739268643769,-438.95729888,0.00010958,2]
[352711640,1739268643778,-500.0,0.00010958,2]
[352711641,1739268643788,-500.0,0.00010958,2]
[352711642,1739268643800,-7955.0,0.00010958,2]
[352711643,1739268643810,-548.33,0.00010958,2]
[352711644,1739268643819,-1211.6,0.00010958,2]
[352711645,1739268643828,-500.0,0.00010958,2]
[352711646,1739268643838,-504.53078262,0.00010958,2]
[352711647,1739268643848,-3462.47,0.00010958,2]
[352711648,1739268643858,-590.38759407,0.00010958,2]
[352711649,1739268643868,-2000.76,0.00010958,2]
[352711650,1739268643878,-3245.22,0.00010958,2]
[352711651,1739268643889,-890.48,0.00010958,2]
[352711652,1739268643899,-507.46815431,0.00010958,2]
[352711653,1739268643909,-3312.48,0.00010958,2]
[352711654,1739268643919,-500.0,0.00010958,2]
[352711655,1739268643929,-500.0,0.00010958,2]
[352711656,1739268643939,-603.46885172,0.00010958,2]
[352711657,1739268643949,-500.0,0.00010958,2]
[352711658,1739268643959,-2340.47,0.00010958,2]
[352711659,1739268643968,-5789.73,0.00010958,2]
[352711660,1739268643977,-2172.81,0.00010958,2]
[352711661,1739268643987,-998.74,0.00010958,2]
[352711662,1739268643996,-500.0,0.00010958,2]
[352711663,1739268644006,-500.0,0.00010958,2]
[352711664,1739268644017,-1338.42,0.00010958,2]
[352711665,1739268644027,-3005.27,0.00010958,2]
[352711666,1739268644036,-500.40865355,0.00010958,2]
[352711667,1739268644046,-514.98,0.00010958,2]
[352711668,1739268644056,-236.09340307,0.00010958,2]
[352711669,1739268644065,-500.0,0.00010958,2]
[352711670,1739268644075,-500.0,0.00010958,2]
[352711671,1739268644084,-2719.84,0.00010958,2]
[352711672,1739268644094,-500.0,0.00010958,2]
[352711673,1739268644104,-500.0,0.00010958,2]
[352711674,1739268644114,-350.59124461,0.00010958,2]
[352711675,1739268644123,-336.79,0.00010958,2]
[352711676,1739268644132,-508.4,0.00010958,2]
[352711677,1739268644142,-1987.02,0.00010958,2]
[352711678,1739268644151,-512.27,0.00010958,2]
[352711679,1739268644161,-6696.19,0.00010958,2]
[352711680,1739268644171,-500.0,0.00010958,2]
[352711681,1739268644180,-1835.53,0.00010958,2]
[352711682,1739268644190,-500.0,0.00010958,2]
[352711683,1739268644199,-500.0,0.00010958,2]
[352711684,1739268644209,-500.0,0.00010958,2]
[352711685,1739268644219,-500.0,0.00010958,2]
[352711686,1739268644229,-1293.83,0.00010958,2]
[352711687,1739268644238,-500.0,0.00010958,2]
[352711688,1739268644248,-2630.56,0.00010958,2]
[352711689,1739268644257,-1325.35,0.00010958,2]
[352711690,1739268644267,-500.0,0.00010958,2]
[352711691,1739268644277,-500.0,0.00010958,2]
[352711692,1739268644286,-500.0,0.00010958,2]
[352711693,1739268644295,-500.0,0.00010958,2]
[352711694,1739268644305,-502.88102574,0.00010958,2]
[352711695,1739268644314,-2370.00365,0.00010958,2]
[352711696,1739268644323,-500.0,0.00010958,2]
[352711697,1739268644333,-500.0,0.00010958,2]
[352711698,1739268644343,-3878.36,0.00010958,2]
[352711699,1739268644352,-500.0,0.00010958,2]
[352711700,1739268644363,-500.0,0.00010958,2]
[352711701,1739268644372,-1427.14,0.00010958,2]
[352711702,1739268644382,-500.0,0.00010958,2]
[352711703,1739268644392,-500.0,0.00010958,2]
[352711704,1739268644401,-500.0,0.00010958,2]
[352711705,1739268644411,-500.0,0.00010958,2]
[352711706,1739268644420,-500.0,0.00010958,2]
[352711707,1739268644430,-1319.08,0.00010958,2]
[352711708,1739268644440,-3120.63,0.00010958,2]
[352711709,1739268644451,-537.75244265,0.00010958,2]
[352711710,1739268644461,-500.0,0.00010958,2]
[352711711,1739268644471,-500.0,0.00010958,2]
[352711712,1739268644487,-1433.56,0.00010958,2]
[352711713,1739268644496,-500.0,0.00010958,2]
[352711714,1739268644506,-500.0,0.00010958,2]
[352711715,1739268644515,-1773.95,0.00010958,2]
[352711716,1739268644525,-500.0,0.00010958,2]
[352711717,1739268644535,-500.0,0.00010958,2]
[352711718,1739268644544,-503.88026216,0.00010958,2]
[352711719,1739268644554,-500.0,0.00010958,2]
[352711720,1739268644563,-3101.58,0.00010958,2]
[352711721,1739268644572,-1963.29,0.00010958,2]
[352711722,1739268644582,-500.0,0.00010958,2]
[352711723,1739268644591,-500.0,0.00010958,2]
[352711724,1739268644601,-1637.63,0.00010958,2]
[352711725,1739268644610,-500.0,0.00010958,2]
[352711726,1739268644620,-964.92,0.00010958,2]
[352711727,1739268644629,-500.0,0.00010958,2]
[352711728,1739268644639,-1876.18,0.00010958,2]
[352711729,1739268644649,-500.0,0.00010958,2]
[352711730,1739268644659,-2073.37,0.00010958,2]
[352711731,1739268644668,-500.0,0.00010958,2]
[352711732,1739268644678,-500.0,0.00010958,2]
[352711733,1739268644687,-500.0,0.00010958,2]
[352711734,1739268644697,-500.31,0.00010958,2]
[352711735,1739268644706,-502.77408485,0.00010958,2]
[352711736,1739268644716,-2375.6,0.00010958,2]
[352711737,1739268644725,-716.25,0.00010958,2]
[352711738,1739268644734,-500.0,0.00010958,2]
[352711739,1739268644744,-500.0,0.00010958,2]
[352711740,1739268644754,-500.0,0.00010958,2]
[352711741,1739268644763,-500.0,0.00010958,2]
[352711742,1739268644772,-1461.18,0.00010958,2]
[352711743,1739268644782,-500.0,0.00010958,2]
[352711744,1739268644791,-500.0,0.00010958,2]
[352711745,1739268644804,-500.0,0.00010958,2]
[352711746,1739268644814,-500.0,0.00010958,2]
[352711747,1739268644823,-1347.25,0.00010958,2]
[352711748,1739268644832,-887.79,0.00010958,2]
[352711749,1739268644842,-508.79,0.00010958,2]
[352711750,1739268644852,-500.0,0.00010958,2]
[352711751,1739268644861,-500.0,0.00010958,2]
[352711752,1739268644871,-3635.94,0.00010958,2]
[352711753,1739268644882,-500.0,0.00010958,2]
[352711754,1739268644892,-500.0,0.00010958,2]
[352711755,1739268644902,-156.680193,0.00010958,2]
[352711756,1739268644911,-1064.86,0.00010958,2]
[352711757,1739268644921,-1899.68,0.00010958,2]
[352711758,1739268644931,-1762.91,0.00010958,2]
[352711759,1739268644940,-500.0,0.00010958,2]
[352711760,1739268644950,-500.0,0.00010958,2]
[352711761,1739268644959,-500.0,0.00010958,2]
[352711762,1739268644968,-500.0,0.00010958,2]
[352711763,1739268644977,-500.0,0.00010958,2]
[352711764,1739268644987,-506.5,0.00010958,2]
[352711765,1739268644997,-100896.78613653,0.00010958,2]
[352711766,1739268645006,-150.0,0.0001096,2]
[352711767,1739268645016,-150.0,0.0001096,2]
[352711768,1739268645026,-150.0,0.00010964,2]
[352711769,1739268645035,-150.0,0.00010966,2]
[352711770,1739268645044,-150.0,0.00010969,2]
[352711771,1739268645053,-150.0,0.00010969,2]
[352711772,1739268645063,-150.0,0.00010969,2]
[352711773,1739268645072,-150.0,0.0001097,2]
[352711774,1739268645081,-150.0,0.00010972,2]
[352711775,1739268645091,-1000.0,0.00010973,2]
[352711776,1739268645100,-150.0,0.00010974,2]
[352711777,1739268645110,-150.0,0.00010975,2]
[352711778,1739268645119,-150.0,0.00010976,2]
[352711779,1739268645128,-150.0,0.00010977,2]
[352711780,1739268645139,-150.0,0.00010977,2]
[352711781,1739268645148,-150.0,0.00010978,2]
[352711782,1739268645157,-914.521,0.00010979,2]
[352711783,1739268645167,-150.0,0.00010983,2]
[352711784,1739268645177,-150.0,0.00010985,2]
[352711785,1739268645186,-150.0,0.00010985,2]
[352711786,1739268645196,-150.0,0.00010986,2]
[352711787,1739268645205,-150.0,0.00010991,2]
[352711788,1739268645214,-186.64166102,0.00010995,2]
[352711789,1739268645223,-163.83807805,0.00010995,2]
[352711790,1739268645233,-393.07615854,0.00010995,2]
[352711791,1739268645242,-20782.25373911,0.00010995,2]
[352711792,1739268645255,-150.0,0.00010998,2]
[352711793,1739268645264,-99302.61720423,0.00010999,2]
[352711794,1739268645274,-389.1779475,0.00010999,2]
[352711795,1739268645284,-468.0,0.00011,2]
[352711796,1739268645293,-10057.25304004,0.00011,2]
[352711797,1739268645303,-516.0,0.00011,2]
[352711798,1739268645312,-597.40559679,0.00011,7]
[352711799,1739268645322,-150.0,0.00011,2]
[352711800,1739268645331,-150.0,0.00011001,2]
[352711801,1739268645340,-2000.0,0.00011006,2]
[352711802,1739268645349,-150.0,0.00011008,2]
[352711803,1739268645359,-150.0,0.00011008,2]
[352711804,1739268645368,-217.0,0.0001101,2]
[352711805,1739268645377,-150.0,0.00011013,2]
[352711806,1739268645388,-150.0,0.00011015,2]
[352711807,1739268645397,-1025.0,0.00011021,2]
[352711808,1739268645406,-150.0,0.00011021,2]
[352711809,1739268645415,-150.0,0.00011022,2]
[352711810,1739268645424,-150.0,0.00011026,2]
[352711811,1739268645433,-150.0,0.00011028,2]
[352711813,1739268645442,-150.0,0.0001103,2]
[352711814,1739268645452,-150.0,0.00011031,2]
[352711815,1739268645462,-150.0,0.00011032,2]
[352711816,1739268645471,-150.0,0.00011034,2]
[352711817,1739268645480,-150.0,0.0001104,2]
[352711818,1739268645489,-150.0,0.0001104,2]
[352711819,1739268645498,-150.0,0.00011041,2]
[352711820,1739268645507,-150.0,0.00011041,2]
[352711821,1739268645517,-150.0,0.00011044,2]
[352711822,1739268645527,-150.0,0.00011049,2]
[352711823,1739268645537,-1300.0,0.0001105,2]
[352711824,1739268645547,-3500.0,0.0001105,2]
[352711825,1739268645556,-3400.0,0.0001105,2]
[352711826,1739268645566,-500.0,0.00011052,2]
[352711827,1739268645575,-150.0,0.00011055,2]
[352711828,1739268645585,-150.0,0.00011057,2]
[352711829,1739268645595,-150.0,0.00011059,2]
[352711830,1739268645604,-150.0,0.0001106,2]
[352711831,1739268645613,-150.0,0.0001106,2]
[352711832,1739268645623,-150.0,0.0001106,2]
[352711833,1739268645633,-150.0,0.00011061,2]
[352711834,1739268645643,-150.0,0.00011063,2]
[352711835,1739268645652,-150.0,0.00011065,2]
[352711836,1739268645663,-150.0,0.00011065,2]
[352711837,1739268645673,-150.0,0.00011066,2]
[352711838,1739268645682,-200.0,0.00011068,2]
[352711839,1739268645692,-200.0,0.00011068,2]
[352711840,1739268645701,-2024.0,0.00011069,2]
[352711841,1739268645711,-1273.0,0.00011069,2]
[352711842,1739268645721,-638.0,0.00011069,2]
[352711843,1739268645732,-569.0,0.00011069,2]
[352711844,1739268645743,-150.0,0.00011069,2]
[352711845,1739268645753,-3914.0,0.00011069,2]
[352711846,1739268645762,-150.0,0.00011069,2]
[352711847,1739268645772,-285.037,0.00011069,2]
[352711848,1739268645782,-150.0,0.0001107,2]
[352711849,1739268645792,-150.0,0.00011076,2]
[352711850,1739268645803,-150.0,0.00011078,2]
[352711851,1739268645813,-8425.84704404,0.0001108,2]
[352711852,1739268645823,-150.0,0.00011082,2]
[352711853,1739268645832,-150.0,0.00011084,2]
[352711854,1739268645841,-150.0,0.00011084,2]
[352711855,1739268645850,-7502.0608627,0.00011084,2]
[352711856,1739268645859,-355.2657871,0.00011084,2]
[352711857,1739268645873,-1969.6054032,0.00011084,2]
[352711858,1739268645896,-150.0,0.0001109,2]
[352711859,1739268645915,-150.0,0.00011091,2]
[352711860,1739268645924,-150.0,0.00011092,2]
[352711861,1739268645934,-500.0,0.00011093,2]
[352711862,1739268645943,-500.0,0.00011094,2]
[352711863,1739268645953,-500.0,0.00011094,2]
[352711864,1739268645962,-500.0,0.00011094,2]
[352711865,1739268645972,-449.51,0.00011094,2]
[352711866,1739268645981,-588.12,0.00011094,2]
[352711867,1739268645991,-588.12,0.00011094,2]
[352711868,1739268646000,-588.12,0.00011094,2]
[352711869,1739268646009,-12950.2108659,0.00011094,2]
[352711870,1739268646019,-500.0,0.00011095,2]
[352711871,1739268646028,-500.0,0.00011095,2]
[352711872,1739268646037,-521.82065554,0.00011095,2]
[352711873,1739268646046,-325.09192853,0.00011095,2]
[352711874,1739268646055,-500.0,0.00011095,2]
[352711875,1739268646065,-500.0,0.00011095,2]
[352711876,1739268646074,-599.98096343,0.00011095,2]
[352711877,1739268646084,-500.0,0.00011095,2]
[352711878,1739268646094,-635.4667227,0.00011095,2]
[352711879,1739268646104,-181.17320664,0.00011095,2]
[352711880,1739268646113,-500.0,0.00011095,2]
[352711881,1739268646122,-500.0,0.00011095,2]
[352711882,1739268646131,-550.72606086,0.00011095,2]